bitfinex-derivatives/quotes_BTCF0:USTF0_20241210
["timestamp","ask_amount","ask_price","bid_price","bid_amount"]
[1733807226010,0.06164938,96790.0,96789.0,0.3818344]
[1733807226317,4e-05,96790.0,96789.0,0.4334694]
[1733807227222,4e-05,96790.0,96789.0,0.3818344]
[1733807227413,4e-05,96790.0,96789.0,0.0210344]
[1733807228817,0.051637,96785.0,96784.0,0.34692]
[1733807229615,0.051637,96785.0,96784.0,0.34702559]
[1733807229924,0.051677,96785.0,96784.0,0.34702559]
[1733807231321,4e-05,96785.0,96784.0,0.41960638]
[1733807234326,4e-05,96785.0,96784.0,0.36796838]
[1733807242624,0.051677,96785.0,96784.0,0.36796838]
[1733807246929,0.051677,96785.0,96784.0,0.72876838]
[1733807246930,4e-05,96785.0,96784.0,0.72876838]
[1733807251530,4e-05,96785.0,96784.0,0.97148569]
[1733807251933,4e-05,96785.0,96784.0,0.61068569]
[1733807252236,4e-05,96785.0,96784.0,0.72876838]
[1733807253537,0.09255179,96785.0,96784.0,0.36796838]
[1733807253732,4e-05,96785.0,96784.0,0.36796838]
[1733807254035,0.09285641,96785.0,96784.0,0.36796838]
[1733807254227,4e-05,96785.0,96784.0,0.36796838]
[1733807255231,4e-05,96785.0,96784.0,0.97148569]
[1733807255437,4e-05,96785.0,96784.0,0.72876838]
[1733807260045,0.09281822,96803.0,96800.0,0.051629]
[1733807260342,0.09281822,96804.0,96802.0,4e-05]
[1733807260841,0.09281822,96804.0,96803.0,0.051668]
[1733807261042,0.09281822,96807.0,96805.0,0.051627]
[1733807261346,0.31937992,96809.0,96806.0,0.051665]
[1733807261642,0.2265617,96809.0,96808.0,4e-05]
[1733807261842,0.09281822,96811.0,96808.0,0.051665]
[1733807262046,0.09281822,96814.0,96808.0,0.36084]
[1733807262247,0.15899045,96818.0,96815.0,0.051621]
[1733807262445,0.01034251,96818.0,96815.0,0.051621]
[1733807262642,0.09281822,96822.0,96817.0,4e-05]
[1733807262841,0.09281822,96822.0,96817.0,0.05166]
[1733807263038,0.09281822,96822.0,96821.0,4e-05]
[1733807263240,0.09281822,96823.0,96822.0,0.051617]
[1733807263440,0.00011385,96825.0,96821.0,0.00013966]
[1733807263641,0.01022606,96825.0,96822.0,4e-05]
[1733807263844,0.00011385,96825.0,96824.0,4e-05]
[1733807264946,0.00011385,96825.0,96824.0,0.051656]
[1733807265343,0.0616663,96825.0,96824.0,4e-05]
[1733807265552,0.05172985,96825.0,96824.0,4e-05]
[1733807266351,0.41252985,96825.0,96824.0,4e-05]
[1733807269560,0.53587891,96825.0,96801.0,0.051629]
[1733807269743,0.051624,96809.0,96808.0,0.02036618]
[1733807270452,0.051624,96809.0,96808.0,0.02044126]
[1733807273153,0.06170387,96809.0,96808.0,0.02044126]
[1733807273550,0.06170387,96809.0,96808.0,7.508e-05]
[1733807274445,0.1542667,96809.0,96808.0,7.508e-05]
[1733807276148,0.06170387,96809.0,96808.0,7.508e-05]
[1733807279150,0.01007987,96809.0,96808.0,0.05170008]
[1733807279353,0.14839255,96818.0,96808.0,0.05170008]
[1733807279546,0.051622,96814.0,96808.0,0.05170008]
[1733807279955,0.05582972,96818.0,96812.0,0.051622]
[1733807280152,0.05582972,96818.0,96816.0,0.05162]
[1733807280153,0.00994833,96818.0,96816.0,0.05162]
[1733807280359,0.00151386,96825.0,96817.0,4e-05]
[1733807280557,0.01003289,96825.0,96822.0,0.412417]
[1733807280856,0.00011385,96825.0,96824.0,4e-05]
[1733807284863,0.00011385,96825.0,96824.0,0.01018183]
[1733807285166,0.00011385,96825.0,96824.0,4e-05]
[1733807286962,0.00011385,96825.0,96824.0,0.24476782]
[1733807287368,0.00011385,96825.0,96824.0,0.24473239]
[1733807287563,0.00011385,96825.0,96824.0,4e-05]
[1733807290373,0.00011385,96825.0,96824.0,0.02060447]
[1733807303493,0.09267668,96825.0,96824.0,0.02060447]
[1733807304481,0.00011385,96825.0,96824.0,0.02060447]
[1733807312697,0.00011385,96825.0,96817.0,0.2447875]
[1733807312988,0.051619,96819.0,96814.0,0.02043863]
[1733807313181,0.53607513,96815.0,96814.0,0.02043863]
[1733807313379,0.412421,96815.0,96814.0,0.02043863]
[1733807313791,0.051621,96815.0,96814.0,0.02043863]
[1733807314584,0.09272596,96817.0,96814.0,0.02043863]
[1733807314786,0.05162,96817.0,96816.0,0.3608]
[1733807315590,0.05162,96817.0,96816.0,0.36084]
[1733807315782,0.05162,96817.0,96816.0,0.60634505]
[1733807316289,0.05162,96817.0,96816.0,0.36084]
[1733807317285,0.05162,96817.0,96812.0,0.24570961]
[1733807317589,0.051624,96809.0,96808.0,7.508e-05]
[1733807318088,0.17634667,96809.0,96808.0,7.508e-05]
[1733807318291,0.05258398,96809.0,96808.0,7.508e-05]
[1733807318690,0.17634667,96809.0,96808.0,7.508e-05]
[1733807319289,0.05258398,96809.0,96808.0,7.508e-05]
[1733807319690,0.17634667,96809.0,96808.0,7.508e-05]
[1733807319887,0.27458398,96809.0,96808.0,7.508e-05]
[1733807320884,0.39824522,96809.0,96808.0,7.508e-05]
[1733807321294,0.27458398,96809.0,96808.0,7.508e-05]
[1733807321801,0.39824522,96809.0,96808.0,7.508e-05]
[1733807322096,0.27458398,96809.0,96808.0,7.508e-05]
[1733807322299,0.40829453,96809.0,96808.0,7.508e-05]
[1733807322492,0.28463329,96809.0,96808.0,7.508e-05]
[1733807322685,0.18629453,96809.0,96808.0,7.508e-05]
[1733807322888,0.06263329,96809.0,96808.0,7.508e-05]
[1733807323099,0.00095998,96809.0,96808.0,7.508e-05]
[1733807323296,0.05258398,96809.0,96808.0,7.508e-05]
[1733807323488,0.05258398,96809.0,96808.0,0.24578469]
[1733807324995,0.05258398,96809.0,96808.0,7.508e-05]
[1733807325196,0.05258398,96809.0,96808.0,0.24531025]
[1733807326004,0.00095998,96809.0,96808.0,0.05170008]
[1733807326393,0.051622,96813.0,96808.0,0.05170008]
[1733807326702,0.00087998,96818.0,96810.0,0.30684408]
[1733807326996,0.00087998,96818.0,96817.0,0.3608]
[1733807327202,0.00087998,96818.0,96817.0,0.36084]
[1733807346806,0.00087998,96818.0,96817.0,0.412461]
[1733807347011,0.00087998,96818.0,96817.0,0.65759994]
[1733807347211,0.00087998,96818.0,96817.0,0.412461]
[1733807348311,0.00087998,96818.0,96817.0,0.71930508]
[1733807348811,0.00087998,96818.0,96817.0,0.412461]
[1733807350718,0.00011385,96825.0,96824.0,0.051618]
[1733807350907,0.00011385,96825.0,96824.0,0.412418]
[1733807351720,0.00011385,96825.0,96824.0,0.412458]
[1733807351920,0.09269938,96845.0,96824.0,0.412458]
[1733807352217,0.05582972,96850.0,96844.0,0.3608]
[1733807352218,0.10743372,96850.0,96844.0,0.3608]
[1733807352517,0.14430338,96850.0,96844.0,0.36084]
[1733807352714,0.15463781,96850.0,96849.0,4e-05]
[1733807353316,0.06193843,96850.0,96849.0,4e-05]
[1733807353511,0.06193843,96850.0,96849.0,0.00013828]
[1733807353512,0.01033443,96850.0,96849.0,0.00013828]
[1733807353719,0.05582972,96854.0,96849.0,0.00013828]
[1733807353907,0.0661601,96854.0,96849.0,0.05174228]
[1733807354107,0.0661601,96854.0,96853.0,4e-05]
[1733807354323,0.01033038,96854.0,96853.0,4e-05]
[1733807354512,0.2837,96857.0,96853.0,4e-05]
[1733807354909,0.2837,96857.0,96852.0,0.3608]
[1733807354910,0.2837,96857.0,96856.0,4e-05]
[1733807355815,0.01009719,96857.0,96856.0,4e-05]
[1733807356015,0.09269938,96863.0,96856.0,4e-05]
[1733807356219,0.14429638,96864.0,96856.0,4e-05]
[1733807356413,0.14429638,96864.0,96862.0,4e-05]
[1733807357313,0.051597,96864.0,96863.0,4e-05]
[1733807362529,0.01016196,96865.0,96863.0,4e-05]
[1733807362834,0.2144,96869.0,96863.0,4e-05]
[1733807363017,0.2144,96869.0,96864.0,4e-05]
[1733807363220,0.265994,96869.0,96868.0,4e-05]
[1733807364134,0.27616013,96869.0,96868.0,4e-05]
[1733807364631,0.06176013,96869.0,96868.0,4e-05]
[1733807364826,0.01016613,96869.0,96868.0,4e-05]
[1733807365021,0.0559435,96873.0,96868.0,4e-05]
[1733807365223,0.00011378,96873.0,96870.0,0.3608]
[1733807365427,0.00011378,96873.0,96872.0,4e-05]
[1733807365841,0.01021302,96873.0,96872.0,4e-05]
[1733807366033,0.00011378,96873.0,96872.0,4e-05]
[1733807367025,0.22481378,96873.0,96872.0,4e-05]
[1733807369927,0.00011378,96873.0,96872.0,0.02083118]
[1733807370430,0.00011378,96873.0,96872.0,4e-05]
[1733807370825,0.051607,96852.0,96850.0,0.34688]
[1733807371129,8e-05,96851.0,96850.0,0.34688]
[1733807372335,8e-05,96851.0,96850.0,0.36707467]
[1733807373428,8e-05,96851.0,96850.0,0.72787467]
[1733807373838,0.01023273,96851.0,96850.0,0.72787467]
[1733807374038,8e-05,96851.0,96850.0,0.72787467]
[1733807376236,8e-05,96851.0,96849.0,9.828e-05]
[1733807376434,0.051608,96850.0,96849.0,9.828e-05]
[1733807376642,0.272308,96850.0,96849.0,9.828e-05]
[1733807377131,0.05162,96827.0,96826.0,0.70764]
[1733807377337,0.05162,96827.0,96826.0,0.34684]
[1733807377536,0.0517,96827.0,96826.0,0.34684]
[1733807377924,0.0517,96827.0,96826.0,0.36750607]
[1733807378131,0.0517,96827.0,96826.0,0.36764014]
[1733807381337,8e-05,96827.0,96826.0,0.36764014]
[1733807387838,8e-05,96827.0,96826.0,0.61173827]
[1733807388237,8e-05,96827.0,96826.0,0.36764014]
[1733807390741,8e-05,96827.0,96826.0,0.37790698]
[1733807391144,0.051609,96848.0,96843.0,0.051611]
[1733807391344,0.051609,96848.0,96844.0,0.2278]
[1733807391540,0.051609,96848.0,96844.0,0.4415]
[1733807391739,0.051609,96848.0,96847.0,4e-05]
[1733807393044,0.01036251,96850.0,96847.0,0.00110119]
[1733807393247,0.051605,96856.0,96847.0,0.00110119]
[1733807393548,0.051605,96856.0,96849.0,4e-05]
[1733807393948,0.051605,96856.0,96852.0,0.00106119]
[1733807394148,0.05582972,96857.0,96844.0,0.4415]
[1733807394149,0.05582972,96857.0,96855.0,4e-05]
[1733807394350,0.3608,96858.0,96855.0,4e-05]
[1733807394544,0.37081238,96858.0,96856.0,4e-05]
[1733807394850,0.01001238,96858.0,96857.0,4e-05]
[1733807395051,0.2187,96861.0,96858.0,0.051603]
[1733807395546,0.2187,96861.0,96860.0,4e-05]
[1733807395750,0.2354,96863.0,96860.0,4e-05]
[1733807395946,0.01040831,96863.0,96860.0,4e-05]
[1733807396251,0.051601,96864.0,96862.0,4e-05]
[1733807397249,0.051601,96864.0,96863.0,4e-05]
[1733807397770,0.15456009,96864.0,96863.0,4e-05]
[1733807398055,0.06196592,96864.0,96863.0,4e-05]
[1733807398639,0.07096592,96864.0,96863.0,0.00104]
[1733807399038,0.07896592,96864.0,96863.0,0.00204]
[1733807401867,0.20242481,96864.0,96855.0,0.02012823]
[1733807402158,0.051604,96856.0,96855.0,0.02012823]
[1733807402358,0.36220001,96858.0,96833.0,0.3608]
[1733807402545,0.051615,96837.0,96833.0,0.3608]
[1733807402744,0.05582972,96843.0,96833.0,0.3608]
[1733807402745,0.051616,96836.0,96833.0,0.3608]
[1733807402947,0.051616,96836.0,96835.0,0.02014268]
[1733807404854,0.2269,96842.0,96835.0,0.02014268]
[1733807405056,0.00140001,96846.0,96845.0,0.05161]
[1733807405252,0.10743772,96850.0,96835.0,0.02014268]
[1733807405447,0.10743772,96850.0,96846.0,0.05161]
[1733807405649,0.11755159,96850.0,96849.0,4e-05]
[1733807405954,0.06172187,96850.0,96849.0,4e-05]
[1733807406566,0.06872187,96850.0,96849.0,4e-05]
[1733807408253,0.07072187,96850.0,96849.0,0.00104]
[1733807408461,0.07572187,96850.0,96849.0,0.00104]
[1733807408754,0.06672187,96850.0,96849.0,4e-05]
[1733807408952,0.07572187,96850.0,96849.0,0.00104]
[1733807409154,0.07072187,96850.0,96849.0,0.00104]
[1733807409354,0.07672187,96850.0,96849.0,0.00204]
[1733807410155,0.02511387,96850.0,96849.0,0.00204]
[1733807410359,0.015,96850.0,96849.0,0.29765406]
[1733807410555,0.015,96850.0,96849.0,0.053648]
[1733807411064,8e-05,96856.0,96855.0,0.051605]
[1733807411357,8e-05,96856.0,96855.0,0.051645]
[1733807411968,8e-05,96856.0,96855.0,0.05177374]
[1733807412261,8e-05,96856.0,96855.0,0.52574191]
[1733807412473,0.00908,96856.0,96855.0,0.28227374]
[1733807412963,0.01608,96856.0,96855.0,0.28327374]
[1733807413267,0.3608,96867.0,96862.0,0.051601]
[1733807413563,0.3608,96867.0,96866.0,4e-05]
[1733807414270,0.37085173,96867.0,96866.0,4e-05]
[1733807415167,0.3608,96867.0,96866.0,4e-05]
[1733807415470,0.3608,96867.0,96866.0,0.00104]
[1733807416066,0.01000287,96868.0,96866.0,0.36184]
[1733807416567,0.01000287,96868.0,96867.0,4e-05]
[1733807416760,0.31498679,96883.0,96872.0,0.051596]
[1733807416961,0.01011687,96882.0,96872.0,0.412396]
[1733807417264,0.09258679,96888.0,96872.0,0.412436]
[1733807417668,0.12345889,96894.0,96872.0,0.412436]
[1733807417669,0.01040185,96886.0,96885.0,0.051589]
[1733807417870,0.09258679,96896.0,96890.0,0.051586]
[1733807418172,0.02002679,96897.0,96890.0,0.051586]
[1733807418380,0.2287,96898.0,96895.0,4e-05]
[1733807418381,0.23863317,96898.0,96895.0,4e-05]
[1733807418570,0.23863317,96898.0,96896.0,4e-05]
[1733807419365,0.23863317,96898.0,96897.0,4e-05]
[1733807420460,0.23963317,96898.0,96897.0,4e-05]
[1733807421073,0.23863317,96898.0,96897.0,4e-05]
[1733807421373,0.23863317,96898.0,96897.0,0.00011852]
[1733807421374,0.01093317,96898.0,96897.0,0.00011852]
[1733807421668,0.01093317,96898.0,96897.0,0.00111852]
[1733807421979,0.001,96898.0,96897.0,0.00111852]
[1733807423067,0.001,96898.0,96897.0,0.36191852]
[1733807423274,0.1,96900.0,96898.0,0.051582]
[1733807423679,9.787e-05,96917.0,96912.0,0.051574]
[1733807423973,0.01004631,96917.0,96914.0,0.412373]
[1733807424173,9.787e-05,96917.0,96914.0,0.412373]
[1733807424675,9.787e-05,96917.0,96916.0,4e-05]
[1733807425667,9.787e-05,96917.0,96914.0,0.001]
[1733807425979,0.051653,96915.0,96914.0,0.001]
[1733807426177,8e-05,96915.0,96897.0,0.02065701]
[1733807426485,0.051578,96906.0,96900.0,0.051581]
[1733807426667,0.051578,96906.0,96902.0,0.05158]
[1733807426871,0.051578,96906.0,96903.0,0.3608]
[1733807427972,0.051579,96905.0,96903.0,0.3608]
[1733807429174,0.051579,96905.0,96903.0,0.3618]
[1733807429674,0.05582972,96910.0,96903.0,0.3618]
[1733807429877,0.05582972,96910.0,96907.0,0.051577]
[1733807430079,0.01023648,96910.0,96909.0,4e-05]
[1733807430279,0.051574,96913.0,96909.0,4e-05]
[1733807430580,0.051574,96913.0,96912.0,0.36084]
[1733807432178,0.06159279,96913.0,96912.0,0.36184]
[1733807433079,0.06159279,96913.0,96912.0,0.36284]
[1733807442483,0.18505168,96913.0,96912.0,0.36284]
[1733807442876,0.06159279,96913.0,96912.0,0.36284]
[1733807444989,0.06159279,96913.0,96912.0,0.81834]
[1733807445683,9.787e-05,96917.0,96912.0,0.81734]
[1733807445891,9.787e-05,96917.0,96913.0,0.2235]
[1733807446078,9.787e-05,96917.0,96916.0,4e-05]
[1733807448786,9.787e-05,96917.0,96916.0,0.00104]
[1733807448991,9.787e-05,96917.0,96916.0,0.00204]
[1733807449183,9.787e-05,96917.0,96916.0,0.00104]
[1733807449382,9.787e-05,96917.0,96916.0,0.00204]
[1733807452688,0.22449787,96917.0,96916.0,0.00204]
[1733807452882,0.5046388,96917.0,96916.0,0.00204]
[1733807454386,0.60887995,96917.0,96916.0,0.00204]
[1733807455090,0.60887995,96917.0,96916.0,0.02298929]
[1733807455296,0.45449787,96917.0,96916.0,0.02298929]
[1733807457497,0.50540104,96917.0,96916.0,0.02298929]
[1733807463099,0.50539076,96917.0,96916.0,0.02298929]
[1733807465301,0.60891855,96917.0,96916.0,0.02298929]
[1733807465505,0.60891855,96917.0,96916.0,0.00204]
[1733807465697,0.051582,96898.0,96897.0,0.00011852]
[1733807466100,0.051582,96898.0,96881.0,0.3608]
[1733807466313,0.051586,96890.0,96888.0,0.02038607]
[1733807466805,0.15443421,96892.0,96877.0,0.34664]
[1733807467002,0.412384,96894.0,96857.0,0.3608]
[1733807467003,0.3608,96880.0,96857.0,0.3608]
[1733807467208,0.051603,96858.0,96857.0,0.3608]
[1733807467413,0.051603,96858.0,96857.0,0.36087838]
[1733807468108,0.0516,96865.0,96857.0,0.38186971]
[1733807468302,0.0516,96865.0,96860.0,0.051602]
[1733807468609,0.3608,96889.0,96857.0,0.74266971]
[1733807468610,0.051601,96862.0,96861.0,0.4399]
[1733807469905,0.062601,96862.0,96861.0,0.4409]
[1733807471607,0.062601,96862.0,96861.0,0.001]
[1733807472307,0.423401,96862.0,96861.0,0.001]
[1733807473008,0.051603,96858.0,96857.0,7.838e-05]
[1733807473905,0.051683,96858.0,96857.0,7.838e-05]
[1733807474509,0.055683,96858.0,96857.0,7.838e-05]
[1733807476005,0.058683,96858.0,96857.0,7.838e-05]
[1733807476412,0.054683,96858.0,96857.0,7.838e-05]
[1733807476609,0.060683,96858.0,96857.0,7.838e-05]
[1733807477712,0.01108,96858.0,96857.0,0.36187838]
[1733807477907,0.00808,96858.0,96857.0,0.00107838]
[1733807478109,0.01308,96858.0,96857.0,0.00107838]
[1733807479721,0.01108,96858.0,96857.0,7.838e-05]
[1733807480117,0.01108,96858.0,96849.0,0.02095123]
[1733807480118,0.051607,96851.0,96849.0,0.02095123]
[1733807480318,0.412407,96851.0,96849.0,0.02095123]
[1733807481025,8e-05,96850.0,96849.0,0.02095123]
[1733807481224,8e-05,96850.0,96849.0,0.02106203]
[1733807483316,0.00708,96850.0,96849.0,0.02206203]
[1733807484425,0.02123175,96850.0,96849.0,0.02206203]
[1733807484624,0.01108,96850.0,96849.0,0.02206203]
[1733807484820,0.23158,96850.0,96849.0,0.02206203]
[1733807485020,0.23158,96850.0,96849.0,0.0011108]
[1733807487142,0.23158,96850.0,96849.0,8e-07]
[1733807487446,0.3550945,96850.0,96849.0,8e-07]
[1733807487742,0.051612,96843.0,96810.0,0.2213]
[1733807488041,0.051627,96814.0,96810.0,0.2213]
[1733807488245,8e-05,96811.0,96810.0,0.2213]
[1733807488643,8e-05,96811.0,96810.0,0.22140321]
[1733807489438,8e-05,96811.0,96810.0,0.22240321]
[1733807490039,0.00608,96811.0,96810.0,0.22240321]
[1733807490640,0.00308,96811.0,96810.0,0.24256596]
[1733807491040,0.00408,96811.0,96810.0,0.24256596]
[1733807493845,0.00408,96811.0,96810.0,0.02126596]
[1733807494053,0.00408,96811.0,96800.0,0.1]
[1733807494054,0.051634,96801.0,96800.0,0.1]
[1733807494948,0.051674,96801.0,96800.0,0.1]
[1733807495152,0.051674,96801.0,96800.0,0.1000913]
[1733807495841,0.051674,96801.0,96792.0,0.4464]
[1733807495842,0.051638,96794.0,96792.0,0.4464]
[1733807496042,0.051638,96794.0,96793.0,0.02028129]
[1733807496753,0.051638,96794.0,96793.0,0.02036732]
[1733807497064,0.051638,96794.0,96751.0,0.24454902]
[1733807497065,0.051667,96739.0,96736.0,0.24462238]
[1733807497246,0.051667,96739.0,96698.0,0.051689]
[1733807497247,0.051681,96713.0,96708.0,0.04136]
[1733807497553,0.051686,96704.0,96683.0,0.3608]
[1733807497849,0.05582972,96710.0,96708.0,0.24454902]
[1733807498043,0.01,96710.0,96704.0,0.3608]
[1733807498242,0.13357303,96711.0,96709.0,0.24718896]
[1733807498547,0.06207978,96711.0,96710.0,0.27854896]
[1733807499738,0.051682,96711.0,96710.0,0.28154896]
[1733807500358,0.412482,96711.0,96710.0,0.28154896]
[1733807500559,0.412482,96711.0,96710.0,0.03699994]
[1733807500847,0.412482,96711.0,96701.0,9.039e-05]
[1733807500848,0.051687,96702.0,96701.0,3.9e-07]
[1733807501047,0.051693,96691.0,96690.0,0.02096697]
[1733807501249,0.051699,96679.0,96664.0,0.3608]
[1733807501645,0.051739,96679.0,96673.0,0.03136]
[1733807502047,0.051739,96679.0,96678.0,0.38190189]
[1733807502859,4e-05,96679.0,96678.0,0.44036624]
[1733807503644,0.00104,96679.0,96678.0,0.44036624]
[1733807504051,0.00104,96679.0,96678.0,0.49206524]
[1733807504647,0.051686,96703.0,96678.0,0.47068624]
[1733807504854,0.051686,96703.0,96701.0,0.05846435]
[1733807505046,0.051686,96703.0,96702.0,8e-05]
[1733807506151,0.059686,96703.0,96702.0,8e-05]
[1733807506546,0.051686,96703.0,96702.0,8e-05]
[1733807506750,0.059686,96703.0,96702.0,8e-05]
[1733807507457,0.420486,96703.0,96702.0,4e-05]
[1733807507754,0.424486,96703.0,96702.0,4e-05]
[1733807509553,0.063686,96703.0,96702.0,4e-05]
[1733807509955,0.425486,96703.0,96702.0,4e-05]
[1733807510646,0.425486,96703.0,96702.0,0.00104]
[1733807510647,0.427486,96703.0,96702.0,0.00104]
[1733807513259,0.427486,96703.0,96702.0,0.001]
[1733807513452,0.43128593,96703.0,96702.0,0.00347996]
[1733807516165,0.051695,96687.0,96686.0,0.3608]
[1733807516462,0.015,96703.0,96702.0,0.05846435]
[1733807516654,0.015,96703.0,96702.0,0.05566442]
[1733807516655,0.007,96703.0,96702.0,0.05566442]
[1733807516952,0.007,96703.0,96702.0,0.07558441]
[1733807517754,0.051686,96704.0,96702.0,0.07458441]
[1733807517946,0.051686,96704.0,96700.0,0.14981414]
[1733807518146,0.051686,96704.0,96703.0,8e-05]
[1733807520555,0.051686,96704.0,96703.0,0.00108]
[1733807520556,0.059686,96704.0,96703.0,0.00108]
[1733807522252,0.059686,96704.0,96703.0,8e-05]
[1733807526169,0.051687,96701.0,96700.0,0.14981414]
[1733807526466,0.10193395,96701.0,96700.0,0.14981414]
[1733807527562,0.10393395,96701.0,96700.0,0.14981414]
[1733807529070,0.10693395,96701.0,96700.0,0.14981414]
[1733807529273,0.29169682,96701.0,96700.0,0.14981414]
[1733807530365,0.10693395,96701.0,96700.0,0.14981414]
[1733807530561,0.15718168,96701.0,96700.0,0.14981414]
[1733807531364,0.10549468,96701.0,96700.0,0.14981414]
[1733807531565,0.20988591,96701.0,96700.0,0.14981414]
[1733807531768,0.20988591,96701.0,96700.0,0.36531414]
[1733807532564,0.20688591,96701.0,96700.0,0.36531414]
[1733807532871,0.20788591,96701.0,96700.0,0.36531414]
[1733807533581,0.20588591,96701.0,96700.0,0.36531414]
[1733807533770,0.20688591,96701.0,96700.0,0.36531414]
[1733807536979,0.20588591,96701.0,96700.0,0.36531414]
[1733807537180,0.20688591,96701.0,96700.0,0.36531414]
[1733807541570,0.33057741,96701.0,96700.0,0.36531414]
[1733807543468,0.33057741,96701.0,96700.0,0.36540162]
[1733807543982,0.07215274,96701.0,96700.0,0.36540162]
[1733807544275,0.16493599,96701.0,96700.0,0.36540162]
[1733807545369,0.04118439,96702.0,96701.0,0.051687]
[1733807545672,0.20197066,96703.0,96701.0,0.97082426]
[1733807545872,0.52011968,96704.0,96702.0,0.25051317]
[1733807546181,1e-08,96704.0,96703.0,0.30224416]
[1733807546679,0.0135402,96705.0,96703.0,0.95082049]
[1733807546870,0.05781605,96706.0,96705.0,0.051685]
[1733807547074,0.03385394,96710.0,96709.0,0.051683]
[1733807547381,0.43357182,96726.0,96724.0,0.051675]
[1733807547680,0.43357182,96726.0,96724.0,3.20518251]
[1733807548185,0.17515457,96726.0,96724.0,3.20518251]
[1733807548365,0.17447457,96726.0,96725.0,3.26206649]
[1733807548569,0.17447457,96726.0,96725.0,3.26214649]
[1733807549565,0.17447457,96726.0,96725.0,2.49437271]
[1733807549773,0.17447457,96726.0,96725.0,2.85517271]
[1733807550181,0.17447457,96726.0,96725.0,2.86552011]
[1733807550580,0.17547457,96726.0,96725.0,2.87152011]
[1733807550885,0.001,96726.0,96725.0,2.87152011]
[1733807553574,0.001,96726.0,96725.0,3.54610097]
[1733807553776,0.001,96726.0,96725.0,2.87152011]
[1733807553988,0.001,96726.0,96725.0,3.54622485]
[1733807554369,0.001,96726.0,96725.0,4.22083489]
[1733807554683,0.001,96726.0,96725.0,3.54622485]
[1733807554880,0.001,96726.0,96725.0,2.87152011]
[1733807555077,0.001,96726.0,96725.0,3.54617876]
[1733807555481,0.001,96726.0,96725.0,2.87152011]
[1733807556184,0.43346618,96727.0,96726.0,0.051674]
[1733807556389,0.43294617,96727.0,96726.0,2.7705508]
[1733807556579,0.43294617,96727.0,96726.0,2.80170279]
[1733807556885,0.43294617,96727.0,96726.0,2.1575394]
[1733807557195,0.2164435,96727.0,96726.0,1.67032521]
[1733807557387,0.2164435,96727.0,96726.0,2.31454672]
[1733807557784,0.2174435,96727.0,96726.0,1.67632521]
[1733807558083,0.001,96727.0,96726.0,1.26757534]
[1733807558785,8.46e-05,96742.0,96741.0,0.051666]
[1733807559081,8.46e-05,96742.0,96741.0,1.837539]
[1733807559273,8.46e-05,96742.0,96741.0,1.64684445]
[1733807559475,8.46e-05,96742.0,96741.0,2.19833516]
[1733807559675,0.2204,96762.0,96744.0,0.051664]
[1733807559877,0.01038362,96761.0,96744.0,1.47333648]
[1733807560082,0.01038362,96761.0,96744.0,1.47341648]
[1733807560282,0.2204,96762.0,96744.0,1.47341648]
[1733807560683,0.2204,96762.0,96744.0,1.47355081]
[1733807560987,0.2204,96762.0,96744.0,2.09838813]
[1733807561184,0.2204,96762.0,96744.0,1.47355081]
[1733807561383,0.2204,96762.0,96744.0,2.0466572]
[1733807561584,0.051645,96781.0,96746.0,0.61286517]
[1733807561791,0.01013068,96771.0,96750.0,0.412461]
[1733807561992,0.01013068,96771.0,96750.0,2.45168706]
[1733807562294,0.2306,96776.0,96750.0,2.75180644]
[1733807562295,6.5e-07,96751.0,96750.0,2.75180644]
[1733807562481,6.5e-07,96751.0,96750.0,2.75188644]
[1733807563492,6.5e-07,96751.0,96750.0,3.4249626]
[1733807563884,0.00100065,96751.0,96750.0,3.4249626]
[1733807564087,0.00100065,96751.0,96750.0,2.75188644]
[1733807564481,0.00100065,96751.0,96750.0,2.76088644]
[1733807564482,0.00200065,96751.0,96750.0,2.76088644]
[1733807565283,0.00100065,96751.0,96750.0,2.76088644]
[1733807565485,0.00200065,96751.0,96750.0,2.76788644]
[1733807565789,0.00200065,96751.0,96750.0,2.14547393]
[1733807565991,6.5e-07,96751.0,96750.0,2.75713358]
[1733807566178,6.5e-07,96751.0,96750.0,2.14547393]
[1733807566891,0.2281,96774.0,96773.0,0.051649]
[1733807566892,0.04218197,96774.0,96773.0,0.051649]
[1733807567092,0.2128,96775.0,96773.0,2.53738876]
[1733807567393,0.2128,96775.0,96774.0,1.41689355]
[1733807567797,0.2229,96789.0,96775.0,0.051648]
[1733807567990,0.2229,96789.0,96776.0,1.96693731]
[1733807568187,0.2229,96789.0,96776.0,1.41689355]
[1733807569092,0.2229,96789.0,96788.0,0.3608]
[1733807569278,0.2229,96789.0,96788.0,1.65882356]
[1733807569681,0.2229,96789.0,96788.0,2.20142584]
[1733807569992,0.2229,96789.0,96788.0,2.25306684]
[1733807570292,0.2229,96789.0,96788.0,1.28270277]
[1733807570986,0.12816135,96789.0,96788.0,1.28270277]
[1733807571694,0.12916135,96789.0,96788.0,1.28270277]
[1733807572502,0.13016135,96789.0,96788.0,1.28270277]
[1733807572685,0.12916135,96789.0,96788.0,1.28270277]
[1733807572887,0.12916135,96789.0,96788.0,1.28370277]
[1733807573391,0.12816135,96789.0,96788.0,1.28370277]
[1733807573592,0.12816135,96789.0,96788.0,1.28770277]
[1733807574592,0.12816135,96789.0,96788.0,1.27756636]
[1733807575991,0.12816135,96789.0,96788.0,1.27656636]
[1733807576189,0.12816135,96789.0,96788.0,1.27756636]
[1733807576389,0.12816135,96789.0,96788.0,0.417521]
[1733807576585,0.12816135,96789.0,96788.0,2.43336834]
[1733807576790,0.35629281,96790.0,96788.0,2.43336834]
[1733807577003,0.3557728,96790.0,96788.0,2.43336834]
[1733807577690,0.36586665,96790.0,96789.0,8e-05]
[1733807578692,0.3557728,96790.0,96789.0,8e-05]
[1733807580401,0.01012588,96797.0,96793.0,0.051638]
[1733807580598,0.051631,96808.0,96796.0,0.3608]
[1733807580902,0.051631,96808.0,96807.0,8e-05]
[1733807582700,0.052631,96808.0,96807.0,8e-05]
[1733807583099,0.41679577,96817.0,96807.0,8e-05]
[1733807583296,0.051627,96813.0,96812.0,0.36699952]
[1733807584499,0.2129,96816.0,96812.0,0.36699952]
[1733807584801,0.2129,96816.0,96815.0,0.051626]
[1733807585902,0.2139,96816.0,96815.0,0.051626]
[1733807586103,0.00737337,96817.0,96815.0,0.051626]
[1733807586302,0.05612161,96830.0,96824.0,0.051621]
[1733807586600,0.05612161,96830.0,96816.0,0.00012592]